fUST/lending_fUST_20240804
["ID","MTS","AMOUNT","RATE_DAILY","PERIOD"]
[334113510,1722781834479,-683.6,0.00013698,2]
[334113511,1722781834488,-500.0,0.00013698,2]
[334113512,1722781834498,-500.0,0.00013698,2]
[334113513,1722781834508,-500.0,0.00013698,2]
[334113514,1722781834518,-502.59999954,0.00013698,2]
[334113515,1722781834528,-500.0,0.00013698,2]
[334113516,1722781834539,-500.0,0.00013698,2]
[334113517,1722781834553,-500.0,0.00013698,2]
[334113518,1722781834563,-500.0,0.00013698,2]
[334113519,1722781834574,-500.0,0.00013698,2]
[334113520,1722781834583,-500.0,0.00013698,2]
[334113521,1722781834593,-3647.32,0.00013698,2]
[334113522,1722781834603,-500.0,0.00013698,2]
[334113523,1722781834614,-500.0,0.00013698,2]
[334113524,1722781834623,-500.0,0.00013698,2]
[334113525,1722781834634,-656.98,0.00013698,2]
[334113526,1722781834648,-500.0,0.00013698,2]
[334113527,1722781834657,-500.0,0.00013698,2]
[334113528,1722781834669,-1664.75,0.00013698,2]
[334113529,1722781834679,-500.0,0.00013698,2]
[334113530,1722781834688,-1286.01,0.00013698,2]
[334113531,1722781834698,-500.0,0.00013698,2]
[334113532,1722781834708,-500.0,0.00013698,2]
[334113533,1722781834718,-500.0,0.00013698,2]
[334113534,1722781834728,-500.0,0.00013698,2]
[334113535,1722781834740,-2825.21,0.00013698,2]
[334113536,1722781834751,-286.500631,0.00013699,2]
[334113537,1722781834762,-249.68991104,0.00013972,2]
[334113538,1722781834772,-500.0,0.00013972,2]
[334113539,1722781834781,-500.0,0.00013972,2]
[334113540,1722781834791,-500.0,0.00013972,2]
[334113541,1722781834801,-500.0,0.00013972,2]
[334113542,1722781834811,-500.0,0.00013972,2]
[334113543,1722781834820,-500.0,0.00013972,2]
[334113544,1722781834830,-500.0,0.00013972,2]
[334113545,1722781834842,-500.0,0.00013972,2]
[334113546,1722781834852,-500.0,0.00013972,2]
[334113547,1722781834863,-500.0,0.00013972,2]
[334113548,1722781834873,-500.0,0.00013972,2]
[334113549,1722781834884,-500.0,0.00013972,2]
[334113550,1722781834896,-568.64,0.00013972,2]
[334113551,1722781834907,-500.0,0.00013972,2]
[334113552,1722781834917,-500.0,0.00013972,2]
[334113553,1722781834927,-500.0,0.00013972,2]
[334113554,1722781834937,-500.0,0.00013972,2]
[334113555,1722781834947,-500.0,0.00013972,2]
[334113556,1722781834956,-982.0,0.00013972,2]
[334113557,1722781834966,-500.0,0.00013972,2]
[334113558,1722781834980,-500.0,0.00013972,2]
[334113559,1722781834989,-500.0,0.00013972,2]
[334113560,1722781835000,-507.3814636,0.00013972,2]
[334113561,1722781835011,-500.0,0.00013972,2]
[334113562,1722781835022,-1037.9,0.00013972,2]
[334113563,1722781835032,-500.0,0.00013972,2]
[334113564,1722781835044,-500.0,0.00013972,2]
[334113565,1722781835055,-1583.41,0.00013972,2]
[334113566,1722781835065,-1462.5,0.00013972,2]
[334113567,1722781835077,-573.42,0.00013972,2]
[334113568,1722781835087,-500.0,0.00013972,2]
[334113569,1722781835099,-500.0,0.00013972,2]
[334113570,1722781835110,-500.0,0.00013972,2]
[334113571,1722781835121,-500.0,0.00013972,2]
[334113572,1722781835131,-500.0,0.00013972,2]
[334113573,1722781835145,-500.0,0.00013972,2]
[334113574,1722781835155,-528.95,0.00013972,2]
[334113575,1722781835166,-500.0,0.00013972,2]
[334113576,1722781835175,-500.0,0.00013972,2]
[334113577,1722781835186,-500.0,0.00013972,2]
[334113578,1722781835195,-1009.11,0.00013972,2]
[334113579,1722781835206,-500.0,0.00013972,2]
[334113580,1722781835216,-500.0,0.00013972,2]
[334113581,1722781835226,-1521.88,0.00013972,2]
[334113582,1722781835236,-500.0,0.00013972,2]
[334113583,1722781835246,-500.0,0.00013972,2]
[334113584,1722781835255,-500.0,0.00013972,2]
[334113585,1722781835265,-500.0,0.00013972,2]
[334113586,1722781835275,-239.82047973,0.00013972,2]
[334113587,1722781835284,-500.0,0.00013972,2]
[334113588,1722781835294,-500.0,0.00013972,2]
[334113589,1722781835304,-500.0,0.00013972,2]
[334113590,1722781835313,-500.0,0.00013972,2]
[334113591,1722781835323,-303.69653273,0.00013972,2]
[334113592,1722781835335,-500.0,0.00013972,2]
[334113593,1722781835347,-500.0,0.00013972,2]
[334113594,1722781835358,-683.6,0.00013972,2]
[334113595,1722781835367,-500.0,0.00013972,2]
[334113596,1722781835376,-500.0,0.00013972,2]
[334113597,1722781835387,-500.0,0.00013972,2]
[334113598,1722781835397,-500.0,0.00013972,2]
[334113599,1722781835406,-500.0,0.00013972,2]
[334113600,1722781835415,-500.0,0.00013972,2]
[334113601,1722781835425,-3647.32,0.00013972,2]
[334113602,1722781835434,-500.0,0.00013972,2]
[334113603,1722781835443,-500.0,0.00013972,2]
[334113604,1722781835453,-656.98,0.00013972,2]
[334113605,1722781835462,-500.0,0.00013972,2]
[334113606,1722781835471,-500.0,0.00013972,2]
[334113607,1722781835481,-1664.75,0.00013972,2]
[334113608,1722781835491,-500.0,0.00013972,2]
[334113609,1722781835501,-1286.01,0.00013972,2]
[334113610,1722781835512,-500.0,0.00013972,2]
[334113611,1722781835522,-500.0,0.00013972,2]
[334113612,1722781835531,-500.0,0.00013972,2]
[334113613,1722781835542,-500.0,0.00013972,2]
[334113614,1722781835551,-2825.21,0.00013972,2]
[334113615,1722781835562,-1180.6476917,0.00014078,2]
[334113616,1722781835577,-360.19385741,0.00014078,2]
[334113617,1722781835586,-306.0,0.00014078,2]
[334113618,1722781835598,-244.50614259,0.00014129,2]
[334113625,1722781839922,-500.0,0.00013698,2]
[334113626,1722781839931,-500.0,0.00013698,2]
[334113627,1722781839941,-500.0,0.00013972,2]
[334113628,1722781839950,-350.60662428,0.00013972,2]
[334113629,1722781839959,-433.82296344,0.00014129,2]
[334113630,1722781839969,-20659.0175654,0.00014236,2]
[334113660,1722781843389,-1880.67694903,0.00010959,2]
[334113661,1722781843407,-680.29999839,0.00013283,2]
[334113662,1722781843419,-500.0,0.00013698,2]
[334113663,1722781843432,-429.47008231,0.00013698,2]
[334113675,1722781843681,-70.52991769,0.00013698,2]
[334113676,1722781843691,-500.0,0.00013972,2]
[334113677,1722781843701,-500.0,0.00013972,2]
[334113678,1722781843711,-51.1994194,0.00014236,2]
[334113679,1722781843721,-489.03179604,0.00014246,2]
[334113699,1722781849138,-683.13,0.00010959,2]
[334113700,1722781849148,-2775.58108794,0.0001212,2]
[334113701,1722781849159,-500.0,0.00013698,2]
[334113702,1722781849168,-500.0,0.00013698,2]
[334113703,1722781849178,-500.0,0.00013972,2]
[334113704,1722781849188,-500.0,0.00013972,2]
[334113705,1722781849199,-10.96820396,0.00014246,2]
[334113706,1722781849208,-294.32070811,0.00014246,2]
[334113707,1722781849220,-205.67929189,0.00014246,2]
[334113708,1722781849230,-647.36847481,0.00014246,2]
[334113709,1722781849240,-192.02931546,0.00014246,2]
[334113712,1722782832125,-563.68087608,9.899e-05,2]
[334113713,1722782832147,-408.96709657,9.999e-05,2]
[334113714,1722782832171,-154.71377951,9.999e-05,2]
[334113715,1722782832194,-309.39667648,0.0001,2]
[334113716,1722782832216,-101.09290151,0.0001,2]
[334113717,1722782837166,-311.84790878,0.0001,2]
[334113718,1722782837196,-154.74467129,0.0001,2]
[334113719,1722782837224,-287.62828496,0.0001,2]
[334113720,1722782837251,-200.1317292,0.0001,2]
[334113721,1722782837281,-161.8248694,0.00012128,2]
[334113722,1722782837306,-1197.8799152,0.00012179,2]
[334113723,1722782837335,-300.0,0.00012274,2]
[334113724,1722782837365,-9539.1253779,0.00012275,2]
[334113725,1722782837393,-412.0,0.00013501,2]
[334113726,1722782837421,-1946.36857143,0.00013589,2]
[334113727,1722782837450,-3074.88056912,0.00013598,2]
[334113728,1722782837477,-7423.32786659,0.0001366,2]
[334113729,1722782837503,-200.0,0.00013673,2]
[334113730,1722782837531,-53267.6200302,0.00013688,2]
[334113731,1722782837559,-26633.8100151,0.00013689,2]
[334113732,1722782837584,-532.79055912,0.00013698,2]
[334113733,1722782837609,-500.0,0.00013698,2]
[334113734,1722782837633,-516.82725683,0.00013698,2]
[334113735,1722782837659,-500.0,0.00013698,2]
[334113736,1722782837684,-500.0,0.00013698,2]
[334113737,1722782837713,-454.55205968,0.00013698,2]
[334113738,1722782837740,-500.0,0.00013698,2]
[334113739,1722782837768,-500.0,0.00013698,2]
[334113740,1722782837797,-500.0,0.00013698,2]
[334113741,1722782837824,-500.0,0.00013698,2]
[334113742,1722782837854,-500.0,0.00013698,2]
[334113743,1722782837880,-500.0,0.00013698,2]
[334113744,1722782837910,-500.0,0.00013698,2]
[334113745,1722782837937,-500.0,0.00013698,2]
[334113746,1722782837964,-502.24806216,0.00013698,2]
[334113747,1722782837997,-500.0,0.00013698,2]
[334113748,1722782838026,-500.0,0.00013698,2]
[334113749,1722782838053,-500.0,0.00013698,2]
[334113750,1722782838081,-500.0,0.00013698,2]
[334113751,1722782838106,-500.0,0.00013698,2]
[334113752,1722782838285,-500.0,0.00013698,2]
[334113753,1722782838307,-500.0,0.00013698,2]
[334113754,1722782838329,-557.39576746,0.00013698,2]
[334113755,1722782838350,-500.0,0.00013698,2]
[334113756,1722782838372,-500.0,0.00013698,2]
[334113757,1722782838393,-500.0,0.00013698,2]
[334113758,1722782838416,-500.0,0.00013698,2]
[334113759,1722782838437,-278.85046705,0.00013698,2]
[334113760,1722782838461,-500.0,0.00013698,2]
[334113761,1722782838484,-500.0,0.00013698,2]
[334113762,1722782838508,-500.0,0.00013698,2]
[334113763,1722782838528,-500.0,0.00013698,2]
[334113764,1722782838553,-500.0,0.00013698,2]
[334113765,1722782838576,-500.0,0.00013698,2]
[334113766,1722782838597,-500.0,0.00013698,2]
[334113767,1722782838619,-500.0,0.00013698,2]
[334113768,1722782838641,-500.0,0.00013698,2]
[334113769,1722782838662,-500.0,0.00013698,2]
[334113770,1722782838684,-500.0,0.00013698,2]
[334113771,1722782838707,-500.0,0.00013698,2]
[334113772,1722782838729,-500.0,0.00013698,2]
[334113773,1722782838751,-500.0,0.00013698,2]
[334113774,1722782838773,-500.0,0.00013698,2]
[334113775,1722782838796,-500.0,0.00013698,2]
[334113776,1722782838819,-500.0,0.00013698,2]
[334113777,1722782838840,-500.0,0.00013698,2]
[334113778,1722782838862,-500.0,0.00013698,2]
[334113779,1722782838885,-500.0,0.00013698,2]
[334113780,1722782838907,-500.0,0.00013698,2]
[334113781,1722782838929,-500.0,0.00013698,2]
[334113782,1722782838951,-437.26131148,0.00013698,2]
[334113783,1722782838974,-500.0,0.00013698,2]
[334113784,1722782838999,-500.0,0.00013698,2]
[334113785,1722782839022,-500.0,0.00013698,2]
[334113786,1722782839045,-500.0,0.00013698,2]
[334113787,1722782839068,-500.0,0.00013698,2]
[334113788,1722782839095,-500.0,0.00013698,2]
[334113789,1722782839120,-500.0,0.00013698,2]
[334113790,1722782839144,-500.0,0.00013698,2]
[334113791,1722782839169,-500.0,0.00013698,2]
[334113792,1722782839193,-550.0,0.00013698,2]
[334113793,1722782839217,-500.0,0.00013698,2]
[334113794,1722782839246,-500.0,0.00013698,2]
[334113795,1722782839268,-500.0,0.00013698,2]
[334113796,1722782839290,-500.0,0.00013698,2]
[334113797,1722782839311,-529.14632777,0.00013698,2]
[334113798,1722782839333,-500.0,0.00013698,2]
[334113799,1722782839367,-506.39755018,0.00013698,2]
[334113800,1722782839388,-511.11068816,0.00013698,2]
[334113801,1722782839414,-599.24,0.00013698,2]
[334113802,1722782839435,-500.0,0.00013698,2]
[334113803,1722782839457,-501.81596992,0.00013698,2]
[334113804,1722782839482,-500.0,0.00013698,2]
[334113805,1722782839504,-500.0,0.00013698,2]
[334113806,1722782839525,-500.0,0.00013698,2]
[334113807,1722782839547,-500.0,0.00013698,2]
[334113808,1722782839570,-500.0,0.00013698,2]
[334113809,1722782839592,-151.0,0.00013698,2]
[334113810,1722782839614,-509.02547828,0.00013698,2]
[334113811,1722782839635,-500.0,0.00013698,2]
[334113812,1722782839657,-500.0,0.00013698,2]
[334113813,1722782839679,-500.0,0.00013698,2]
[334113814,1722782839701,-500.0,0.00013698,2]
[334113815,1722782839725,-500.0,0.00013698,2]
[334113816,1722782839747,-500.0,0.00013698,2]
[334113817,1722782839770,-151.0,0.00013698,2]
[334113818,1722782839792,-500.0,0.00013698,2]
[334113819,1722782839813,-226.45757065,0.00013698,2]
[334113820,1722782839835,-500.0,0.00013698,2]
[334113821,1722782839858,-500.0,0.00013698,2]
[334113822,1722782839882,-500.0,0.00013698,2]
[334113823,1722782839906,-500.0,0.00013698,2]
[334113824,1722782839927,-500.0,0.00013698,2]
[334113825,1722782839949,-151.0,0.00013698,2]
[334113826,1722782839971,-500.0,0.00013698,2]
[334113827,1722782839994,-500.0,0.00013698,2]
[334113828,1722782840018,-500.0,0.00013698,2]
[334113829,1722782840039,-500.0,0.00013698,2]
[334113830,1722782840060,-511.68025758,0.00013698,2]
[334113831,1722782840084,-500.0,0.00013698,2]
[334113832,1722782840106,-500.0,0.00013698,2]
[334113833,1722782840129,-151.0,0.00013698,2]
[334113834,1722782840151,-503.19506113,0.00013698,2]
[334113835,1722782840173,-500.0,0.00013698,2]
[334113836,1722782840197,-500.0,0.00013698,2]
[334113837,1722782840221,-500.0,0.00013698,2]
[334113838,1722782840243,-500.0,0.00013698,2]
[334113839,1722782840264,-500.0,0.00013698,2]
[334113840,1722782840288,-877.49,0.00013698,2]
[334113841,1722782840311,-500.0,0.00013698,2]
[334113842,1722782840338,-500.0,0.00013698,2]
[334113843,1722782840362,-500.0,0.00013698,2]
[334113844,1722782840385,-500.0,0.00013698,2]
[334113845,1722782840406,-500.0,0.00013698,2]
[334113846,1722782840428,-500.0,0.00013698,2]
[334113847,1722782840450,-500.0,0.00013698,2]
[334113848,1722782840475,-518.83080562,0.00013698,2]
[334113849,1722782840496,-511.50385678,0.00013698,2]
[334113850,1722782840517,-500.0,0.00013698,2]
[334113851,1722782840539,-1153.92,0.00013698,2]
[334113852,1722782840561,-500.0,0.00013698,2]
[334113853,1722782840582,-500.0,0.00013698,2]
[334113854,1722782840604,-517.195197,0.00013698,2]
[334113855,1722782840626,-500.0,0.00013698,2]
[334113856,1722782840647,-500.0,0.00013698,2]
[334113857,1722782840672,-500.0,0.00013698,2]
[334113858,1722782840695,-500.0,0.00013698,2]
[334113859,1722782840717,-623.69,0.00013698,2]
[334113860,1722782840749,-500.0,0.00013698,2]
[334113861,1722782840779,-500.0,0.00013698,2]
[334113862,1722782840805,-500.0,0.00013698,2]
[334113863,1722782840827,-500.0,0.00013698,2]
[334113864,1722782840850,-176.27461757,0.00013698,2]
[334113865,1722782840875,-500.0,0.00013698,2]
[334113866,1722782840897,-151.0,0.00013698,2]
[334113867,1722782840918,-519.4067708,0.00013698,2]
[334113868,1722782840940,-500.0,0.00013698,2]
[334113869,1722782840962,-500.0,0.00013698,2]
[334113870,1722782840985,-278.59547819,0.00013698,2]
[334113871,1722782841010,-500.0,0.00013698,2]
[334113872,1722782841031,-500.0,0.00013698,2]
[334113873,1722782841054,-500.0,0.00013698,2]
[334113874,1722782841077,-509.40401936,0.00013698,2]
[334113875,1722782841100,-506.19647115,0.00013698,2]
[334113876,1722782841121,-500.0,0.00013698,2]
[334113877,1722782841146,-500.0,0.00013698,2]
[334113878,1722782841168,-251.4455663,0.00013698,2]
[334113879,1722782841190,-500.0,0.00013698,2]
[334113880,1722782841211,-387.04720297,0.00013698,2]
[334113881,1722782841235,-500.0,0.00013698,2]
[334113882,1722782841259,-500.0,0.00013698,2]
[334113883,1722782841280,-500.0,0.00013698,2]
[334113884,1722782841301,-272.96800646,0.00013698,2]
[334113885,1722782841322,-500.0,0.00013698,2]
[334113886,1722782841343,-500.0,0.00013698,2]
[334113887,1722782841365,-500.0,0.00013698,2]
[334113888,1722782841528,-500.0,0.00013698,2]
[334113889,1722782841549,-509.96349792,0.00013698,2]
[334113890,1722782841571,-151.0,0.00013698,2]
[334113891,1722782841594,-151.0,0.00013698,2]
[334113892,1722782841615,-151.0,0.00013698,2]
[334113893,1722782841643,-500.0,0.00013698,2]
[334113894,1722782841665,-151.0,0.00013698,2]
[334113895,1722782841689,-500.0,0.00013698,2]
[334113896,1722782841711,-274.773277,0.00013698,2]
[334113897,1722782841733,-500.0,0.00013698,2]
[334113898,1722782841755,-500.0,0.00013698,2]
[334113899,1722782841778,-500.0,0.00013698,2]
[334113900,1722782841801,-500.0,0.00013698,2]
[334113901,1722782841827,-527.90124887,0.00013698,2]
[334113902,1722782841849,-500.0,0.00013698,2]
[334113903,1722782841870,-500.0,0.00013698,2]
[334113904,1722782841891,-500.0,0.00013698,2]
[334113905,1722782841914,-500.0,0.00013698,2]
[334113906,1722782841936,-500.0,0.00013698,2]
[334113907,1722782841959,-500.89858288,0.00013698,2]
[334113908,1722782841984,-314.79048378,0.00013698,2]
[334113909,1722782842006,-500.0,0.00013698,2]
[334113910,1722782842028,-500.0,0.00013698,2]
[334113911,1722782842053,-500.0,0.00013698,2]
[334113912,1722782842077,-500.0,0.00013698,2]
[334113913,1722782842102,-500.0,0.00013698,2]
[334113914,1722782842124,-151.0,0.00013698,2]
[334113915,1722782842148,-151.0,0.00013698,2]
[334113916,1722782842169,-151.0,0.00013698,2]
[334113917,1722782842192,-500.0,0.00013698,2]
[334113918,1722782842215,-535.953862,0.00013698,2]
[334113919,1722782842237,-500.0,0.00013698,2]
[334113920,1722782842259,-500.0,0.00013698,2]
[334113921,1722782842280,-151.0,0.00013698,2]
[334113922,1722782842301,-319.05137873,0.00013698,2]
[334113923,1722782842324,-964.807555,0.00013698,2]
[334113924,1722782842345,-500.0,0.00013698,2]
[334113925,1722782842368,-964.807555,0.00013698,2]
[334113926,1722782842390,-964.807555,0.00013698,2]
[334113927,1722782842413,-964.807555,0.00013698,2]
[334113928,1722782842436,-511.1363515,0.00013698,2]
[334113929,1722782842459,-151.0,0.00013698,2]
[334113930,1722782842483,-964.807555,0.00013698,2]
[334113931,1722782842505,-151.0,0.00013698,2]
[334113932,1722782842528,-964.807555,0.00013698,2]
[334113933,1722782842550,-151.176751,0.00013698,2]
[334113934,1722782842573,-500.0,0.00013698,2]
[334113935,1722782842597,-964.807555,0.00013698,2]
[334113936,1722782842620,-964.807555,0.00013698,2]
[334113937,1722782842642,-500.0,0.00013698,2]
[334113938,1722782842664,-564.35422041,0.00013698,2]
[334113939,1722782842685,-500.0,0.00013698,2]
[334113940,1722782842707,-240.547642,0.00013698,2]
[334113941,1722782842728,-500.0,0.00013698,2]
[334113942,1722782842750,-240.547642,0.00013698,2]
[334113943,1722782842772,-240.547642,0.00013698,2]
[334113944,1722782842796,-240.547642,0.00013698,2]
[334113945,1722782842819,-500.0,0.00013698,2]
[334113946,1722782842843,-240.547642,0.00013698,2]
[334113947,1722782842866,-240.547642,0.00013698,2]
[334113948,1722782842889,-240.547642,0.00013698,2]
[334113949,1722782842911,-240.547642,0.00013698,2]
[334113950,1722782842932,-513.70913177,0.00013698,2]
[334113951,1722782842955,-151.0,0.00013698,2]
[334113952,1722782842980,-151.0,0.00013698,2]
[334113953,1722782843004,-500.0,0.00013698,2]
[334113954,1722782843030,-500.0,0.00013698,2]
[334113955,1722782843051,-151.0,0.00013698,2]
[334113956,1722782843074,-295.357272,0.00013698,2]
[334113957,1722782843097,-500.0,0.00013698,2]
[334113958,1722782843118,-500.0,0.00013698,2]
[334113959,1722782843140,-1444.78,0.00013698,2]
[334113960,1722782843169,-618.31,0.00013698,2]
[334113961,1722782843202,-500.0,0.00013698,2]
[334113962,1722782843224,-500.0,0.00013698,2]
[334113963,1722782843245,-471.67904458,0.00013698,2]
[334113964,1722782843267,-500.0,0.00013698,2]
[334113965,1722782843289,-500.0,0.00013698,2]
[334113966,1722782843310,-500.0,0.00013698,2]
[334113967,1722782843332,-500.0,0.00013698,2]
[334113968,1722782843355,-568.21,0.00013698,2]
[334113969,1722782843385,-500.0,0.00013698,2]
[334113970,1722782843406,-500.0,0.00013698,2]
[334113971,1722782843430,-500.0,0.00013698,2]
[334113972,1722782843455,-500.0,0.00013698,2]
[334113973,1722782843479,-500.0,0.00013698,2]
[334113974,1722782843502,-500.0,0.00013698,2]
[334113975,1722782843525,-500.0,0.00013698,2]
[334113976,1722782843549,-509.25920373,0.00013698,2]
[334113977,1722782843572,-500.0,0.00013698,2]
[334113978,1722782843594,-500.0,0.00013698,2]
[334113979,1722782843618,-2293.6,0.00013698,2]
[334113980,1722782843643,-1161.26644854,0.00013698,2]
[334113981,1722782851101,-1227.72595654,9.9e-05,2]
[334113982,1722782851126,-482.81355146,0.00013698,2]
[334113983,1722782851148,-151.0,0.00013698,2]
[334113984,1722782851170,-18.97717904,0.00013698,2]
[334113991,1722782945178,-273.37336231,9.9e-05,2]
[334113992,1722782947471,259.34919131,9.9e-05,2]
[334113993,1722782948143,-14.024171,9.9e-05,2]
[334113994,1722782948168,-874.7437535,0.00012699,2]
[334113995,1722782955571,273.37336231,9.9e-05,2]
[334113997,1722782962108,-2459.90445528,0.00013598,2]
[334113998,1722782962130,-200.0,0.00013673,2]
[334113999,1722782962157,-1848.45530101,0.00013688,2]
[334114055,1722783033478,-200.0,0.00013673,2]
[334114056,1722783033488,-1131.03826437,0.00013688,2]
[334114057,1722783033498,-1880.67694903,0.00013688,2]
[334114058,1722783033508,-1147.14195715,0.00013688,2]
[334114059,1722783033520,-2755.30006155,0.00013688,2]
[334114060,1722783033530,-1694.0133496,0.00013688,2]
[334114061,1722783033541,-1629.61973037,0.00013688,2]
[334114062,1722783033551,-185.42088534,0.00013688,2]
[334114063,1722783033561,-20790.28321179,0.00013688,2]
[334114064,1722783033572,-3766.57,0.00013697,2]
[334114065,1722783033583,-3766.57,0.00013697,2]
[334114066,1722783033593,-132.02282096,0.00013698,2]
[334114067,1722783033603,-151.0,0.00013698,2]
[334114068,1722783033613,-151.0,0.00013698,2]
[334114069,1722783033624,-500.0,0.00013698,2]
[334114070,1722783033634,-500.0,0.00013698,2]
[334114071,1722783033647,-500.0,0.00013698,2]
[334114072,1722783033659,-500.0,0.00013698,2]
[334114073,1722783033671,-500.0,0.00013698,2]
[334114074,1722783033681,-500.0,0.00013698,2]
[334114075,1722783033691,-361.55008764,0.00013698,2]
[334114076,1722783033703,-138.44991236,0.00013698,2]
[334114077,1722783033714,-500.0,0.00013698,2]
[334114078,1722783033724,-500.0,0.00013698,2]
[334114079,1722783033733,-500.0,0.00013698,2]
[334114080,1722783033743,-155.38008764,0.00013698,2]
[334114081,1722783033755,-344.61991236,0.00013698,2]
[334114082,1722783033765,-500.0,0.00013698,2]
[334114083,1722783033776,-579.19,0.00013698,2]
[334114084,1722783033785,-503.33472821,0.00013698,2]
[334114085,1722783033795,-500.0,0.00013698,2]
[334114086,1722783033805,-500.0,0.00013698,2]
[334114087,1722783033815,-500.0,0.00013698,2]
[334114088,1722783033945,-151.0,0.00013698,2]
[334114089,1722783033955,-151.0,0.00013698,2]
[334114090,1722783033964,-151.0,0.00013698,2]
[334114091,1722783033973,-144.85535943,0.00013698,2]
[334114124,1722783040472,-6.14464057,0.00013698,2]
[334114125,1722783040481,-151.0,0.00013698,2]
[334114126,1722783040491,-221.41746032,0.00013698,2]
[334114127,1722783040500,-841.82,0.00013698,2]
[334114128,1722783040509,-500.0,0.00013698,2]
[334114129,1722783040518,-500.0,0.00013698,2]
[334114130,1722783040527,-385.04188195,0.00013698,2]
[334114183,1722783042847,-114.95811805,0.00013698,2]
[334114185,1722783042857,-500.0,0.00013698,2]
[334114188,1722783042867,-500.0,0.00013698,2]
[334114191,1722783042877,-500.0,0.00013698,2]
[334114194,1722783042887,-500.0,0.00013698,2]
[334114197,1722783042896,-500.0,0.00013698,2]
[334114199,1722783042908,-500.0,0.00013698,2]
[334114202,1722783042917,-733.77,0.00013698,2]
[334114204,1722783042927,-500.0,0.00013698,2]
[334114207,1722783042939,-500.0,0.00013698,2]
[334114209,1722783042949,-500.0,0.00013698,2]
[334114211,1722783042959,-500.0,0.00013698,2]
[334114213,1722783042970,-500.0,0.00013698,2]
[334114215,1722783042981,-151.0,0.00013698,2]
[334114217,1722783042990,-151.0,0.00013698,2]
[334114219,1722783043001,-151.0,0.00013698,2]
[334114223,1722783043011,-500.0,0.00013698,2]
[334114224,1722783043020,-151.0,0.00013698,2]
[334114225,1722783043029,-151.0,0.00013698,2]
[334114227,1722783043040,-151.0,0.00013698,2]
[334114229,1722783043052,-500.0,0.00013698,2]
[334114231,1722783043061,-500.0,0.00013698,2]
[334114232,1722783043071,-602.28850248,0.00013698,2]
[334114234,1722783043080,-325.69175335,0.00013698,2]
[334114235,1722783043091,-174.30824665,0.00013698,2]
[334114236,1722783043100,-500.0,0.00013698,2]
[334114237,1722783043110,-151.0,0.00013698,2]
[334114238,1722783043121,-504.62854778,0.00013698,2]
[334114239,1722783043131,-501.90243565,0.00013698,2]
[334114240,1722783043141,-331.13662172,0.00013698,2]
[334114241,1722783043154,-500.0,0.00013698,2]
[334114242,1722783043164,-509.30265708,0.00013698,2]
[334114243,1722783043174,-500.0,0.00013698,2]
[334114244,1722783043183,-500.0,0.00013698,2]
[334114245,1722783043194,-325.26670629,0.00013698,2]
[334114246,1722783043204,-500.0,0.00013698,2]
[334114247,1722783043214,-500.0,0.00013698,2]
[334114248,1722783043225,-500.0,0.00013698,2]
[334114249,1722783043235,-146.44298724,0.00013698,2]
[334114348,1722783047171,-2992.84835561,0.00013688,2]